fUSD/lending_fUSD_20241119
["ID","MTS","AMOUNT","RATE_DAILY","PERIOD"]
[342660754,1732027881036,-228.011085,0.00031878,7]
[342660755,1732027881045,-228.011085,0.00031878,7]
[342660756,1732027881054,-228.011085,0.00031878,7]
[342660757,1732027881064,-228.011085,0.00031878,7]
[342660758,1732027881073,-228.011085,0.00031878,7]
[342660759,1732027881082,-228.011085,0.00031878,7]
[342660760,1732027881091,-228.011085,0.00031878,7]
[342660761,1732027881101,-151.0,0.00031878,7]
[342660762,1732027881111,-151.0,0.00031878,7]
[342660763,1732027881120,-151.0,0.00031878,7]
[342660764,1732027881129,-151.0,0.00031878,7]
[342660765,1732027881138,-151.0,0.00031878,7]
[342660766,1732027881147,-151.0,0.00031878,7]
[342660767,1732027881156,-154.249967,0.00031878,7]
[342660768,1732027881165,-151.0,0.00031878,7]
[342660769,1732027881175,-151.0,0.00031878,7]
[342660770,1732027881184,-151.0,0.00031878,7]
[342660771,1732027881194,-280.198932,0.00031878,7]
[342660772,1732027881203,-1701.719222,0.00031878,7]
[342660773,1732027881212,-1701.719222,0.00031878,7]
[342660774,1732027881221,-1701.719222,0.00031878,7]
[342660775,1732027881230,-1701.719222,0.00031878,7]
[342660776,1732027881240,-1701.719222,0.00031878,7]
[342660777,1732027881250,-1701.719222,0.00031878,7]
[342660778,1732027881259,-1701.719222,0.00031878,7]
[342660779,1732027881273,-1701.719222,0.00031878,7]
[342660780,1732027881283,-740.730375,0.00031878,7]
[342660781,1732027881292,-740.730375,0.00031878,7]
[342660782,1732027881302,-740.730375,0.00031878,7]
[342660783,1732027881311,-740.730375,0.00031878,7]
[342660784,1732027881321,-740.730375,0.00031878,7]
[342660785,1732027881331,-740.730375,0.00031878,7]
[342660786,1732027881344,-740.730375,0.00031878,7]
[342660787,1732027881353,-740.730375,0.00031878,7]
[342660788,1732027881363,-158.593645,0.00031878,7]
[342660789,1732027881372,-158.593645,0.00031878,7]
[342660790,1732027881383,-158.593645,0.00031878,7]
[342660791,1732027881392,-158.593645,0.00031878,7]
[342660792,1732027881401,-158.593645,0.00031878,7]
[342660793,1732027881411,-158.593645,0.00031878,7]
[342660794,1732027881421,-158.593645,0.00031878,7]
[342660795,1732027881432,-158.593645,0.00031878,7]
[342660796,1732027881441,-447.488631,0.00031878,7]
[342660797,1732027881452,-447.488631,0.00031878,7]
[342660798,1732027881461,-205.590034,0.00031878,7]
[342660799,1732027881470,-447.488631,0.00031878,7]
[342660800,1732027881479,-447.488631,0.00031878,7]
[342660801,1732027881489,-205.590034,0.00031878,7]
[342660802,1732027881498,-205.590034,0.00031878,7]
[342660803,1732027881509,-205.590034,0.00031878,7]
[342660804,1732027881519,-447.488631,0.00031878,7]
[342660805,1732027881533,-447.488631,0.00031878,7]
[342660806,1732027881542,-447.488631,0.00031878,7]
[342660807,1732027881551,-447.488631,0.00031878,7]
[342660808,1732027881561,-205.590034,0.00031878,7]
[342660809,1732027881570,-205.590034,0.00031878,7]
[342660810,1732027881580,-205.590034,0.00031878,7]
[342660811,1732027881589,-205.590034,0.00031878,7]
[342660812,1732027881599,-419.839689,0.00031878,7]
[342660813,1732027881607,-419.839689,0.00031878,7]
[342660814,1732027881617,-419.839689,0.00031878,7]
[342660815,1732027881626,-419.839689,0.00031878,7]
[342660816,1732027881636,-625.07793,0.00031878,7]
[342660817,1732027881645,-625.07793,0.00031878,7]
[342660818,1732027881655,-419.839689,0.00031878,7]
[342660819,1732027881664,-625.07793,0.00031878,7]
[342660820,1732027881674,-625.07793,0.00031878,7]
[342660821,1732027881683,-419.839689,0.00031878,7]
[342660822,1732027881693,-419.839689,0.00031878,7]
[342660823,1732027881703,-419.839689,0.00031878,7]
[342660824,1732027881713,-151.0,0.00031878,7]
[342660825,1732027881722,-151.0,0.00031878,7]
[342660826,1732027881732,-151.0,0.00031878,7]
[342660827,1732027881741,-625.07793,0.00031878,7]
[342660828,1732027881751,-151.0,0.00031878,7]
[342660829,1732027881761,-625.07793,0.00031878,7]
[342660830,1732027881774,-625.07793,0.00031878,7]
[342660831,1732027881784,-625.07793,0.00031878,7]
[342660832,1732027881794,-600.0,0.00031878,7]
[342660833,1732027881803,-600.0,0.00031878,7]
[342660834,1732027881813,-600.0,0.00031878,7]
[342660835,1732027881822,-600.0,0.00031878,7]
[342660836,1732027881831,-600.0,0.00031878,7]
[342660837,1732027881841,-600.0,0.00031878,7]
[342660838,1732027881850,-600.0,0.00031878,7]
[342660839,1732027881859,-600.0,0.00031878,7]
[342660840,1732027881868,-151.0,0.00031878,7]
[342660841,1732027881877,-151.0,0.00031878,7]
[342660842,1732027881887,-151.0,0.00031878,7]
[342660843,1732027881896,-151.0,0.00031878,7]
[342660844,1732027881906,-159.576969,0.00031878,7]
[342660845,1732027881915,-159.576969,0.00031878,7]
[342660846,1732027881924,-159.576969,0.00031878,7]
[342660847,1732027881934,-298.362701,0.00031878,7]
[342660848,1732027881943,-159.576969,0.00031878,7]
[342660849,1732027881953,-298.362701,0.00031878,7]
[342660850,1732027881963,-298.362701,0.00031878,7]
[342660851,1732027881973,-298.362701,0.00031878,7]
[342660852,1732027881982,-159.576969,0.00031878,7]
[342660853,1732027881992,-298.362701,0.00031878,7]
[342660854,1732027882002,-159.576969,0.00031878,7]
[342660855,1732027882011,-159.576969,0.00031878,7]
[342660856,1732027882024,-298.362701,0.00031878,7]
[342660857,1732027882034,-159.576969,0.00031878,7]
[342660858,1732027882044,-298.362701,0.00031878,7]
[342660859,1732027882054,-298.362701,0.00031878,7]
[342660860,1732027882064,-151.0,0.00031878,7]
[342660861,1732027882074,-151.0,0.00031878,7]
[342660862,1732027882083,-151.0,0.00031878,7]
[342660863,1732027882093,-176.384265,0.00031878,7]
[342660864,1732027882103,-167.488161,0.00031878,7]
[342660865,1732027882114,-167.488161,0.00031878,7]
[342660866,1732027882125,-167.488161,0.00031878,7]
[342660867,1732027882136,-167.488161,0.00031878,7]
[342660868,1732027882146,-167.488161,0.00031878,7]
[342660869,1732027882157,-167.488161,0.00031878,7]
[342660870,1732027882167,-167.488161,0.00031878,7]
[342660871,1732027882177,-167.488161,0.00031878,7]
[342660872,1732027882187,-296.230163,0.00031878,7]
[342660873,1732027882197,-374.435502,0.00031878,7]
[342660874,1732027882208,-374.435502,0.00031878,7]
[342660875,1732027882219,-374.435502,0.00031878,7]
[342660876,1732027882229,-374.435502,0.00031878,7]
[342660877,1732027882239,-374.435502,0.00031878,7]
[342660878,1732027882250,-374.435502,0.00031878,7]
[342660879,1732027882261,-374.435502,0.00031878,7]
[342660880,1732027882277,-374.435502,0.00031878,7]
[342660881,1732027882289,-2142.500908,0.00031878,7]
[342660882,1732027882300,-2142.500908,0.00031878,7]
[342660883,1732027882317,-2142.500908,0.00031878,7]
[342660884,1732027882328,-2142.500908,0.00031878,7]
[342660885,1732027882340,-2142.500908,0.00031878,7]
[342660886,1732027882355,-2142.500908,0.00031878,7]
[342660887,1732027882366,-2142.500908,0.00031878,7]
[342660888,1732027882378,-2142.500908,0.00031878,7]
[342660889,1732027882390,-302.433536,0.00031878,7]
[342660890,1732027882402,-302.433536,0.00031878,7]
[342660891,1732027882412,-302.433536,0.00031878,7]
[342660892,1732027882423,-302.433536,0.00031878,7]
[342660893,1732027882435,-302.433536,0.00031878,7]
[342660894,1732027882445,-302.433536,0.00031878,7]
[342660895,1732027882455,-302.433536,0.00031878,7]
[342660896,1732027882465,-302.433536,0.00031878,7]
[342660897,1732027882474,-253.172762,0.00031878,7]
[342660898,1732027882484,-253.172762,0.00031878,7]
[342660899,1732027882494,-253.172762,0.00031878,7]
[342660900,1732027882504,-253.172762,0.00031878,7]
[342660901,1732027882515,-253.172762,0.00031878,7]
[342660902,1732027882534,-253.172762,0.00031878,7]
[342660903,1732027882544,-253.172762,0.00031878,7]
[342660904,1732027882554,-253.172762,0.00031878,7]
[342660905,1732027882564,-151.0,0.00031878,7]
[342660906,1732027882575,-151.0,0.00031878,7]
[342660907,1732027882584,-155.068252,0.00031878,7]
[342660908,1732027882594,-469.63876,0.00031878,7]
[342660909,1732027882604,-469.63876,0.00031878,7]
[342660910,1732027882614,-469.63876,0.00031878,7]
[342660911,1732027882624,-469.63876,0.00031878,7]
[342660912,1732027882634,-469.63876,0.00031878,7]
[342660913,1732027882643,-469.63876,0.00031878,7]
[342660914,1732027882653,-469.63876,0.00031878,7]
[342660915,1732027882663,-469.63876,0.00031878,7]
[342660916,1732027882673,-151.0,0.00031878,7]
[342660917,1732027882683,-151.0,0.00031878,7]
[342660918,1732027882693,-151.0,0.00031878,7]
[342660919,1732027882703,-151.0,0.00031878,7]
[342660920,1732027882712,-182.651729,0.00031878,7]
[342660921,1732027882723,-1308.35475,0.00031878,7]
[342660922,1732027882732,-1308.35475,0.00031878,7]
[342660923,1732027882742,-1308.35475,0.00031878,7]
[342660924,1732027882752,-1308.35475,0.00031878,7]
[342660925,1732027882762,-1308.35475,0.00031878,7]
[342660926,1732027882777,-1308.35475,0.00031878,7]
[342660927,1732027882788,-1308.35475,0.00031878,7]
[342660928,1732027882798,-1308.35475,0.00031878,7]
[342660929,1732027882808,-219.846201,0.00031878,7]
[342660930,1732027882818,-219.846201,0.00031878,7]
[342660931,1732027882828,-219.846201,0.00031878,7]
[342660932,1732027882838,-219.846201,0.00031878,7]
[342660933,1732027882847,-219.846201,0.00031878,7]
[342660934,1732027882857,-219.846201,0.00031878,7]
[342660935,1732027882867,-219.846201,0.00031878,7]
[342660936,1732027882876,-219.846201,0.00031878,7]
[342660937,1732027882886,-151.0,0.00031878,7]
[342660938,1732027882896,-151.0,0.00031878,7]
[342660939,1732027882905,-151.0,0.00031878,7]
[342660940,1732027882915,-151.0,0.00031878,7]
[342660941,1732027882925,-1000.0,0.0003188,14]
[342660942,1732027882934,-10000.0,0.000319,2]
[342660943,1732027882944,-1000.0,0.0003198,14]
[342660944,1732027882954,-447.48640307,0.00031988,7]
[342660945,1732027882964,-160.20028232,0.00031988,7]
[342660946,1732027882974,-195.78455287,0.00031988,7]
[342660947,1732027882984,-50000.0,0.00032,22]
[342660948,1732027882993,-50000.0,0.00032,12]
[342660949,1732027883003,-200.0,0.00032,2]
[342660950,1732027883012,-1000.0,0.00032,10]
[342660951,1732027883025,-5299.32,0.00032,7]
[342660952,1732027883034,-200.0,0.00032,2]
[342660953,1732027883043,-500.0,0.00032,10]
[342660954,1732027883053,-760.0,0.00032,4]
[342660955,1732027883062,-603.06592528,0.00032,7]
[342660956,1732027883073,-76833.52733517,0.00032,2]
[342660957,1732027883082,-213.59,0.00032,20]
[342660958,1732027883092,-43174.0,0.00032,20]
[342660959,1732027883101,-1800.0,0.00032,33]
[342660960,1732027883111,-500.0,0.00032,120]
[342660961,1732027883120,-500.0,0.00032,120]
[342660962,1732027883129,-450.0,0.00032,120]
[342660963,1732027883139,-510.06,0.00032,120]
[342660964,1732027883148,-17600.0,0.00032,2]
[342660965,1732027883158,-1950.0,0.00032,2]
[342660966,1732027883168,-1009.82,0.0003204,2]
[342660967,1732027883178,-720.58583549,0.00032055,30]
[342660968,1732027883188,-226.667009,0.0003207,120]
[342660969,1732027883198,-1353.867981,0.00032079,7]
[342660970,1732027883207,-1353.867981,0.00032079,7]
[342660971,1732027883216,-1353.867981,0.00032079,7]
[342660972,1732027883226,-1353.867981,0.00032079,7]
[342660973,1732027883236,-1353.867981,0.00032079,7]
[342660974,1732027883245,-1353.867981,0.00032079,7]
[342660975,1732027883255,-1353.867981,0.00032079,7]
[342660976,1732027883264,-1353.867981,0.00032079,7]
[342660977,1732027883277,-151.0,0.00032079,7]
[342660978,1732027883287,-151.0,0.00032079,7]
[342660979,1732027883297,-151.0,0.00032079,7]
[342660980,1732027883307,-151.0,0.00032079,7]
[342660981,1732027883532,-151.0,0.00032079,7]
[342660982,1732027883541,-151.0,0.00032079,7]
[342660983,1732027883551,-151.0,0.00032079,7]
[342660984,1732027883560,-151.0,0.00032079,7]
[342660985,1732027883570,-699.733326,0.00032079,7]
[342660986,1732027883579,-699.733326,0.00032079,7]
[342660987,1732027883588,-699.733326,0.00032079,7]
[342660988,1732027883597,-699.733326,0.00032079,7]
[342660989,1732027883607,-699.733326,0.00032079,7]
[342660990,1732027883616,-699.733326,0.00032079,7]
[342660991,1732027883625,-699.733326,0.00032079,7]
[342660992,1732027883636,-699.733326,0.00032079,7]
[342660993,1732027883647,-4493.276102,0.00032079,7]
[342660994,1732027883656,-4493.276102,0.00032079,7]
[342660995,1732027883667,-4493.276102,0.00032079,7]
[342660996,1732027883676,-4493.276102,0.00032079,7]
[342660997,1732027883686,-720.751891,0.00032079,7]
[342660998,1732027883695,-720.751891,0.00032079,7]
[342660999,1732027883704,-720.751891,0.00032079,7]
[342661000,1732027883714,-720.751891,0.00032079,7]
[342661001,1732027883724,-4493.276102,0.00032079,7]
[342661002,1732027883734,-4493.276102,0.00032079,7]
[342661003,1732027883744,-4493.276102,0.00032079,7]
[342661004,1732027883754,-4493.276102,0.00032079,7]
[342661005,1732027883764,-720.751891,0.00032079,7]
[342661006,1732027883777,-720.751891,0.00032079,7]
[342661007,1732027883787,-720.751891,0.00032079,7]
[342661008,1732027883796,-720.751891,0.00032079,7]
[342661009,1732027883806,-480.058897,0.00032079,7]
[342661010,1732027883815,-480.058897,0.00032079,7]
[342661011,1732027883825,-480.058897,0.00032079,7]
[342661012,1732027883837,-480.058897,0.00032079,7]
[342661013,1732027883848,-480.058897,0.00032079,7]
[342661014,1732027883857,-480.058897,0.00032079,7]
[342661015,1732027883867,-480.058897,0.00032079,7]
[342661016,1732027883877,-480.058897,0.00032079,7]
[342661017,1732027883887,-474.793912,0.00032079,7]
[342661018,1732027883897,-474.793912,0.00032079,7]
[342661019,1732027883906,-474.793912,0.00032079,7]
[342661020,1732027883915,-474.793912,0.00032079,7]
[342661021,1732027883925,-474.793912,0.00032079,7]
[342661022,1732027883936,-474.793912,0.00032079,7]
[342661023,1732027883946,-474.793912,0.00032079,7]
[342661024,1732027883955,-474.793912,0.00032079,7]
[342661025,1732027883964,-571.912875,0.00032079,7]
[342661026,1732027883973,-571.912875,0.00032079,7]
[342661027,1732027883983,-571.912875,0.00032079,7]
[342661028,1732027883993,-571.912875,0.00032079,7]
[342661029,1732027884003,-571.912875,0.00032079,7]
[342661030,1732027884013,-571.912875,0.00032079,7]
[342661031,1732027884024,-571.912875,0.00032079,7]
[342661032,1732027884038,-571.912875,0.00032079,7]
[342661033,1732027884048,-151.0,0.00032079,7]
[342661034,1732027884057,-151.0,0.00032079,7]
[342661035,1732027884067,-151.0,0.00032079,7]
[342661036,1732027884076,-151.0,0.00032079,7]
[342661037,1732027884085,-151.0,0.00032079,7]
[342661038,1732027884094,-151.0,0.00032079,7]
[342661039,1732027884103,-151.0,0.00032079,7]
[342661040,1732027884113,-151.0,0.00032079,7]
[342661041,1732027884122,-151.0,0.00032079,7]
[342661042,1732027884131,-151.0,0.00032079,7]
[342661043,1732027884140,-151.0,0.00032079,7]
[342661044,1732027884150,-284.032786,0.00032079,7]
[342661045,1732027884159,-600.054296,0.00032079,7]
[342661046,1732027884168,-600.054296,0.00032079,7]
[342661047,1732027884177,-600.054296,0.00032079,7]
[342661048,1732027884186,-600.054296,0.00032079,7]
[342661049,1732027884196,-600.054296,0.00032079,7]
[342661050,1732027884204,-600.054296,0.00032079,7]
[342661051,1732027884214,-600.054296,0.00032079,7]
[342661052,1732027884223,-600.054296,0.00032079,7]
[342661053,1732027884232,-209.479131,0.00032079,7]
[342661054,1732027884241,-209.479131,0.00032079,7]
[342661055,1732027884250,-209.479131,0.00032079,7]
[342661056,1732027884260,-209.479131,0.00032079,7]
[342661057,1732027884269,-209.479131,0.00032079,7]
[342661058,1732027884283,-209.479131,0.00032079,7]
[342661059,1732027884293,-209.479131,0.00032079,7]
[342661060,1732027884302,-209.479131,0.00032079,7]
[342661061,1732027884312,-649.373281,0.00032079,7]
[342661062,1732027884321,-649.373281,0.00032079,7]
[342661063,1732027884331,-649.373281,0.00032079,7]
[342661064,1732027884340,-649.373281,0.00032079,7]
[342661065,1732027884353,-649.373281,0.00032079,7]
[342661066,1732027884363,-649.373281,0.00032079,7]
[342661067,1732027884373,-649.373281,0.00032079,7]
[342661068,1732027884382,-649.373281,0.00032079,7]
[342661069,1732027884392,-4284.791342,0.00032079,7]
[342661070,1732027884401,-4284.791342,0.00032079,7]
[342661071,1732027884412,-4284.791342,0.00032079,7]
[342661072,1732027884425,-4284.791342,0.00032079,7]
[342661073,1732027884435,-4284.791342,0.00032079,7]
[342661074,1732027884445,-4284.791342,0.00032079,7]
[342661075,1732027884455,-4284.791342,0.00032079,7]
[342661076,1732027884464,-4284.791342,0.00032079,7]
[342661077,1732027884474,-1216.387468,0.00032079,7]
[342661078,1732027884484,-1216.387468,0.00032079,7]
[342661079,1732027884494,-1216.387468,0.00032079,7]
[342661080,1732027884506,-1216.387468,0.00032079,7]
[342661081,1732027884517,-1216.387468,0.00032079,7]
[342661082,1732027884531,-1216.387468,0.00032079,7]
[342661083,1732027884540,-1216.387468,0.00032079,7]
[342661084,1732027884549,-1216.387468,0.00032079,7]
[342661085,1732027884559,-2734.916534,0.00032079,7]
[342661086,1732027884568,-2734.916534,0.00032079,7]
[342661087,1732027884577,-2734.916534,0.00032079,7]
[342661088,1732027884587,-2734.916534,0.00032079,7]
[342661089,1732027884596,-2734.916534,0.00032079,7]
[342661090,1732027884605,-2734.916534,0.00032079,7]
[342661091,1732027884615,-2734.916534,0.00032079,7]
[342661092,1732027884624,-2734.916534,0.00032079,7]
[342661093,1732027884634,-151.0,0.00032079,7]
[342661094,1732027884643,-151.0,0.00032079,7]
[342661095,1732027884653,-151.0,0.00032079,7]
[342661096,1732027884665,-151.0,0.00032079,7]
[342661097,1732027884674,-151.0,0.00032079,7]
[342661098,1732027884684,-151.0,0.00032079,7]
[342661099,1732027884695,-151.0,0.00032079,7]
[342661100,1732027884704,-190.598245,0.00032079,7]
[342661101,1732027884713,-795.371889,0.00032079,7]
[342661102,1732027884723,-795.371889,0.00032079,7]
[342661103,1732027884732,-795.371889,0.00032079,7]
[342661104,1732027884742,-795.371889,0.00032079,7]
[342661105,1732027884752,-795.371889,0.00032079,7]
[342661106,1732027884761,-795.371889,0.00032079,7]
[342661107,1732027884771,-795.371889,0.00032079,7]
[342661108,1732027884784,-795.371889,0.00032079,7]
[342661109,1732027884793,-1000.0,0.0003208,14]
[342661110,1732027884803,-151.0,0.00032106,2]
[342661111,1732027884812,-102360.71771107,0.00032109,14]
[342661112,1732027884822,-643.0,0.00032109,2]
[342661113,1732027884831,-956.32643617,0.00032109,2]
[342661114,1732027884841,-28942.09504001,0.00032109,2]
[342661115,1732027884850,-8158.75346877,0.00032109,2]
[342661116,1732027884860,-14737.54957423,0.00032109,2]
[342661117,1732027884869,-1356.27656547,0.00032109,2]
[342661118,1732027884878,-208901.85237509,0.00032109,2]
[342661119,1732027884887,-617.56287551,0.00032109,2]
[342661120,1732027884897,-211.7048735,0.00032109,2]
[342661121,1732027884907,-10029.55128809,0.00032109,2]
[342661122,1732027884916,-14553.95786871,0.00032109,2]
[342661123,1732027884926,-1810.65096596,0.00032109,2]
[342661124,1732027884935,-11669.02478217,0.00032109,2]
[342661125,1732027884946,-5062.63214162,0.00032109,2]
[342661126,1732027884955,-1552.01872747,0.00032109,2]
[342661127,1732027884964,-107118.50832728,0.00032109,2]
[342661128,1732027884973,-551.43496399,0.00032109,5]
[342661129,1732027884983,-170653.00635,0.00032109,2]
[342661130,1732027884992,-1948.56677937,0.00032109,5]
[342661131,1732027885001,-933.6968024,0.00032109,20]
[342661132,1732027885010,-519.45413624,0.00032109,7]
[342661133,1732027885019,-300.0,0.00032109,15]
[342661134,1732027885034,-135423.08917596,0.00032109,2]
[342661135,1732027885043,-958.34690247,0.00032109,5]
[342661136,1732027885052,-856.37491747,0.00032109,5]
[342661137,1732027885061,-580.88092582,0.00032109,5]
[342661138,1732027885070,-167257.5256169,0.00032109,2]
[342661139,1732027885081,-1259.72321806,0.00032109,4]
[342661140,1732027885090,-2353679.91022465,0.00032109,2]
[342661141,1732027885099,-214.62401609,0.00032109,5]
[342661142,1732027885108,-161813.96761517,0.00032109,2]
[342661143,1732027885117,-1092.9314439,0.00032109,7]
[342661144,1732027885127,-396424.96290801,0.00032109,2]
[342661145,1732027885136,-6650.23871665,0.00032109,4]
[342661146,1732027885145,-212.57686592,0.00032109,7]
[342661147,1732027885154,-5106.51125162,0.00032109,4]
[342661148,1732027885163,-208.55714758,0.00032109,5]
[342661149,1732027885172,-96300.74612134,0.00032109,10]
[342661150,1732027885181,-18582.90143116,0.00032109,5]
[342661151,1732027885190,-4749.41559843,0.00032109,10]
[342661152,1732027885199,-161278.6338281,0.00032109,7]
[342661153,1732027885208,-304215.36241929,0.00032109,14]
[342661154,1732027885217,-10432.80856077,0.00032109,3]
[342661155,1732027885227,-14621.11528328,0.00032109,3]
[342661156,1732027885235,-372.0905984,0.00032109,2]
[342661157,1732027885244,-1210.0,0.00032109,2]
[342661158,1732027885254,-343.10657223,0.00032109,2]
[342661159,1732027885263,-2961.70115834,0.00032109,2]
[342661160,1732027885273,-1498.06335849,0.00032109,2]
[342661161,1732027885283,-1014.20370067,0.00032109,2]
[342661162,1732027885293,-5108.05639289,0.00032109,2]
[342661163,1732027885302,-2692.65166394,0.00032109,2]
[342661164,1732027885311,-2418.62069529,0.00032109,2]
[342661165,1732027885320,-2638.73001087,0.00032109,2]
[342661166,1732027885329,-3199.59686067,0.00032109,2]
[342661167,1732027885340,-1461.44156737,0.00032109,2]
[342661168,1732027885352,-7607.33650716,0.00032109,2]
[342661169,1732027885362,-1052.93636874,0.00032109,2]
[342661170,1732027885371,-857.17022402,0.00032109,2]
[342661171,1732027885380,-188.1019687,0.00032109,2]
[342661172,1732027885392,-9105.09368802,0.00032109,2]
[342661173,1732027885401,-1292.25345888,0.00032109,2]
[342661174,1732027885411,-292.50888189,0.00032109,2]
[342661175,1732027885421,-12651.50266327,0.00032109,2]
[342661176,1732027885431,-1893.50847925,0.00032109,2]
[342661177,1732027885440,-181.39218761,0.00032109,2]
[342661178,1732027885450,-5504.53362743,0.00032109,2]
[342661179,1732027885459,-564.76783839,0.00032109,2]
[342661180,1732027885469,-3197.79511898,0.00032109,2]
[342661181,1732027885478,-172.91412942,0.00032109,2]
[342661182,1732027885487,-6987.2052704,0.00032109,2]
[342661183,1732027885496,-550.0,0.00032109,2]
[342661184,1732027885505,-1445.81926577,0.00032109,2]
[342661185,1732027885515,-993.86079903,0.00032109,2]
[342661186,1732027885527,-941.20551706,0.00032109,2]
[342661187,1732027885537,-10558.90513184,0.00032109,2]
[342661188,1732027885546,-171.26405829,0.00032109,2]
[342661189,1732027885555,-6000.0,0.00032109,2]
[342661190,1732027885564,-1018.65110013,0.00032109,2]
[342661191,1732027885573,-555.22235555,0.00032109,2]
[342661192,1732027885583,-150.0,0.00032109,2]
[342661193,1732027885591,-443.38074436,0.00032109,2]
[342661194,1732027885601,-20977.68088864,0.00032109,2]
[342661195,1732027885612,-1052.3309086,0.00032109,2]
[342661196,1732027885625,-2500.0,0.00032109,2]
[342661197,1732027885636,-571.32527763,0.00032109,2]
[342661198,1732027885649,-2346.14369411,0.00032109,2]
[342661199,1732027885658,-531.49378113,0.00032109,2]
[342661200,1732027885667,-899.72627765,0.00032109,2]
[342661201,1732027885678,-474.96362795,0.00032109,2]
[342661202,1732027885689,-1564.25640227,0.00032109,2]
[342661203,1732027885698,-2000.0,0.00032109,2]
[342661204,1732027885707,-540.04341031,0.00032109,2]
[342661205,1732027885717,-4936.53275439,0.00032109,2]
[342661206,1732027885726,-359.58602593,0.00032109,2]
[342661207,1732027885735,-2173.98578925,0.00032109,2]
[342661208,1732027885745,-279.6403141,0.00032109,2]
[342661209,1732027885754,-574.32144805,0.00032109,2]
[342661210,1732027885764,-217.18374422,0.00032109,2]
[342661211,1732027885778,-13864.62687916,0.00032109,2]
[342661212,1732027885842,-1039.0,0.00032109,2]
[342661213,1732027885852,-1410.18351606,0.00032109,2]
[342661214,1732027885862,-199.80704495,0.00032109,2]
[342661215,1732027885871,-1974.65685429,0.00032109,2]
[342661216,1732027885881,-384.25786292,0.00032109,14]
[342661217,1732027885891,-150.0,0.00032109,2]
[342661218,1732027885900,-150.0,0.00032109,3]
[342661219,1732027885910,-150.0,0.00032109,2]
[342661220,1732027885920,-150.0,0.00032109,2]
[342661221,1732027885929,-200.0,0.00032109,2]
[342661222,1732027885939,-20425.39574186,0.00032109,7]
[342661223,1732027885948,-1000.0,0.00032109,2]
[342661224,1732027885957,-1000.0,0.00032109,3]
[342661225,1732027885967,-1500.0,0.00032109,2]
[342661226,1732027885976,-1500.0,0.00032109,3]
[342661227,1732027885986,-1500.0,0.00032109,4]
[342661228,1732027885995,-1000.0,0.00032109,4]
[342661229,1732027886004,-988533.44428799,0.00032109,4]
[342661230,1732027886013,-10168.21152671,0.00032109,10]
[342661231,1732027886021,-1988454.30000008,0.00032109,4]
[342661232,1732027886036,-261855.6,0.00032109,5]
[342661233,1732027886046,-2372.50154274,0.00032109,2]
[342661234,1732027886055,-290.52425747,0.00032109,2]
[342661235,1732027886065,-49150.8,0.00032109,10]
[342661236,1732027886074,-111816.80894427,0.00032109,4]
[342661237,1732027886083,-268.33558877,0.00032109,10]
[342661238,1732027886092,-1450.002275,0.00032109,2]
[342661239,1732027886101,-7571.29611486,0.00032109,2]
[342661240,1732027886111,-2015.81479554,0.00032109,2]
[342661241,1732027886120,-607.17442949,0.00032109,6]
[342661242,1732027886130,-2600.0,0.00032109,2]
[342661243,1732027886139,-1689623.28628274,0.00032109,4]
[342661244,1732027886149,-1400.0,0.00032109,2]
[342661245,1732027886159,-2000.0,0.00032109,7]
[342661246,1732027886168,-18293.45520109,0.00032109,2]
[342661247,1732027886178,-806.98288728,0.00032109,2]
[342661248,1732027886188,-6754.47706851,0.00032109,2]
[342661249,1732027886197,-839.92234959,0.00032109,2]
[342661250,1732027886207,-7904.12752832,0.00032109,2]
[342661251,1732027886216,-160.1710905,0.00032109,120]
[342661252,1732027886226,-360.35144441,0.00032109,120]
[342661253,1732027886235,-1000.0,0.00032109,30]